[Event "*** SCC Grand Prix: Titled Tuesday Blitz"]
[Site "Chess.com"]
[Date "2020.06.09"]
[Round "7"]
[White "ChessWarrior7197"]
[Black "lachesisQ"]
[Result "1-0"]
[WhiteElo "2958"]
[BlackElo "3039"]
[TimeControl "180+1"]
[EndTime "10:18:51 PDT"]
[Termination "ChessWarrior7197 won by resignation"]

1. e4 {[%clk 0:03:00.9]} 1... c5 {[%clk 0:02:58.9]} 2. Nf3 {[%clk 0:03:00.8]}
2... d6 {[%clk 0:02:59.5]} 3. d4 {[%clk 0:03:00.6]} 3... cxd4 {[%clk 0:02:59.3]}
4. Qxd4 {[%clk 0:03:01.5]} 4... Nc6 {[%clk 0:02:57.3]} 5. Qe3 {[%clk 0:03:01.3]}
5... g6 {[%clk 0:02:56.4]} 6. Be2 {[%clk 0:03:01.1]} 6... Bh6 {[%clk 0:02:55.8]}
7. Qc3 {[%clk 0:03:00.8]} 7... Qa5 {[%clk 0:02:55.2]} 8. Qxa5 {[%clk 0:02:51.7]}
8... Nxa5 {[%clk 0:02:54.7]} 9. Bxh6 {[%clk 0:02:48.8]} 9... Nxh6 {[%clk
0:02:55.6]} 10. c4 {[%clk 0:02:47.5]} 10... Bg4 {[%clk 0:02:47]} 11. b3 {[%clk
0:02:42.4]} 11... e6 {[%clk 0:02:40.4]} 12. Nc3 {[%clk 0:02:40.9]} 12... Ke7
{[%clk 0:02:40.8]} 13. Nd4 {[%clk 0:02:34]} 13... Bxe2 {[%clk 0:02:39.4]} 14.
Kxe2 {[%clk 0:02:34.9]} 14... Nc6 {[%clk 0:02:37.5]} 15. Rhd1 {[%clk 0:02:34.5]}
15... f6 {[%clk 0:02:35.6]} 16. Rd2 {[%clk 0:02:30.8]} 16... Nf7 {[%clk
0:02:34.8]} 17. Rad1 {[%clk 0:02:30.5]} 17... Nxd4+ {[%clk 0:02:28.9]} 18. Rxd4
{[%clk 0:02:29.4]} 18... Rhd8 {[%clk 0:02:29.7]} 19. f4 {[%clk 0:02:28.5]} 19...
g5 {[%clk 0:02:29.2]} 20. f5 {[%clk 0:02:28.1]} 20... Rac8 {[%clk 0:02:01.4]}
21. fxe6 {[%clk 0:02:25.1]} 21... Kxe6 {[%clk 0:02:02.3]} 22. Rd5 {[%clk
0:02:20.4]} 22... a6 {[%clk 0:01:54.1]} 23. Rf5 {[%clk 0:02:18.5]} 23... Nh6
{[%clk 0:01:53.1]} 24. Rf3 {[%clk 0:02:16.5]} 24... Ng4 {[%clk 0:01:52.4]} 25.
Nd5 {[%clk 0:02:12.4]} 25... Rf8 {[%clk 0:01:32.8]} 26. Rdf1 {[%clk 0:02:11.7]}
26... Ke5 {[%clk 0:00:39.9]} 27. h3 {[%clk 0:01:48.9]} 27... Nh2 {[%clk
0:00:34]} 28. Rf5+ {[%clk 0:01:46.4]} 28... Kxe4 {[%clk 0:00:34.5]} 29. R1f2
{[%clk 0:01:45.4]} 29... Kd4 {[%clk 0:00:30.6]} 30. g4 {[%clk 0:01:41.8]} 30...
Nxg4 {[%clk 0:00:27.4]} 31. hxg4 {[%clk 0:01:41.4]} 31... b5 {[%clk 0:00:28]}
32. Ne3 {[%clk 0:01:30.7]} 32... Rfe8 {[%clk 0:00:27.8]} 33. Rd5+ {[%clk
0:01:25.4]} 33... Kc3 {[%clk 0:00:27]} 34. Kf3 {[%clk 0:01:21.4]} 34... Kb4
{[%clk 0:00:15.7]} 35. Rxd6 {[%clk 0:01:20.1]} 35... f5 {[%clk 0:00:15.8]} 36.
gxf5 {[%clk 0:01:19.2]} 36... h5 {[%clk 0:00:15.5]} 37. f6 {[%clk 0:01:12.9]}
37... g4+ {[%clk 0:00:13]} 38. Kf4 {[%clk 0:01:12.5]} 38... g3 {[%clk
0:00:13.5]} 39. Rc2 {[%clk 0:01:02.5]} 39... h4 {[%clk 0:00:13.9]} 40. f7 {[%clk
0:00:54]} 40... Rf8 {[%clk 0:00:13.4]} 41. Rf6 {[%clk 0:00:53.7]} 41... bxc4
{[%clk 0:00:12.6]} 42. bxc4 {[%clk 0:00:53.1]} 42... a5 {[%clk 0:00:13.2]} 43.
Kg4 {[%clk 0:00:49.8]} 43... Rh8 {[%clk 0:00:13]} 44. Kh3 {[%clk 0:00:48.9]}
44... Rcf8 {[%clk 0:00:13.4]} 45. c5 {[%clk 0:00:47.1]} 45... Rc8 {[%clk
0:00:11.4]} 46. c6 {[%clk 0:00:46.5]} 46... Kb5 {[%clk 0:00:12]} 47. c7 {[%clk
0:00:46.2]} 47... a4 {[%clk 0:00:11.1]} 48. Nf5 {[%clk 0:00:45.1]} 1-0

[Event "*** SCC Grand Prix: Titled Tuesday Blitz"]
[Site "Chess.com"]
[Date "2020.06.09"]
[Round "7"]
[White "Kildepiotr"]
[Black "Treacherous_horse64"]
[Result "1-0"]
[WhiteElo "2607"]
[BlackElo "2451"]
[TimeControl "180+1"]
[EndTime "10:18:51 PDT"]
[Termination "Kildepiotr won by resignation"]

1. Nf3 {[%clk 0:03:00.9]} 1... Nf6 {[%clk 0:02:59.8]} 2. g3 {[%clk 0:03:01.2]}
2... b5 {[%clk 0:02:59.5]} 3. Bg2 {[%clk 0:03:01.6]} 3... Bb7 {[%clk 0:02:59.5]}
4. O-O {[%clk 0:03:02.1]} 4... e6 {[%clk 0:02:59.5]} 5. d3 {[%clk 0:03:02.3]}
5... d6 {[%clk 0:02:59.2]} 6. e4 {[%clk 0:03:01.2]} 6... c5 {[%clk 0:02:57.9]}
7. Nbd2 {[%clk 0:03:01]} 7... Nbd7 {[%clk 0:02:52.7]} 8. Qe2 {[%clk 0:03:00.9]}
8... Be7 {[%clk 0:02:51.3]} 9. a4 {[%clk 0:03:00.2]} 9... a6 {[%clk 0:02:50.2]}
10. Re1 {[%clk 0:02:56.3]} 10... O-O {[%clk 0:02:49.8]} 11. e5 {[%clk
0:02:41.2]} 11... dxe5 {[%clk 0:02:44.9]} 12. Nxe5 {[%clk 0:02:41.4]} 12... Bxg2
{[%clk 0:02:45.4]} 13. Kxg2 {[%clk 0:02:37.1]} 13... Qb6 {[%clk 0:02:37.8]} 14.
Qf3 {[%clk 0:02:31]} 14... Rac8 {[%clk 0:02:30.8]} 15. axb5 {[%clk 0:02:30.2]}
15... axb5 {[%clk 0:02:31.7]} 16. Nxd7 {[%clk 0:02:29.5]} 16... Nxd7 {[%clk
0:02:31.1]} 17. Ne4 {[%clk 0:02:28.3]} 17... Nf6 {[%clk 0:02:23.7]} 18. Bg5
{[%clk 0:02:20.7]} 18... Qd8 {[%clk 0:02:20]} 19. Bxf6 {[%clk 0:02:19]} 19...
Bxf6 {[%clk 0:02:19.1]} 20. Nxf6+ {[%clk 0:02:19]} 20... gxf6 {[%clk 0:02:07.2]}
21. Re4 {[%clk 0:02:17.2]} 21... f5 {[%clk 0:02:01.7]} 22. Rh4 {[%clk
0:02:11.6]} 22... Qf6 {[%clk 0:01:55.4]} 23. c3 {[%clk 0:02:05]} 23... b4 {[%clk
0:01:38.1]} 24. Rc4 {[%clk 0:02:00.9]} 24... bxc3 {[%clk 0:01:34.3]} 25. bxc3
{[%clk 0:02:01.8]} 25... Rfd8 {[%clk 0:01:30.2]} 26. Ra5 {[%clk 0:01:59.8]}
26... Qe5 {[%clk 0:01:26.6]} 27. d4 {[%clk 0:01:53.2]} 27... Qd6 {[%clk
0:01:00.9]} 28. Raxc5 {[%clk 0:01:51.5]} 28... Rb8 {[%clk 0:00:57.1]} 29. Rc6
{[%clk 0:01:41.1]} 29... Qe7 {[%clk 0:00:47.9]} 30. Rc7 {[%clk 0:01:39.1]} 30...
Qf6 {[%clk 0:00:43.2]} 31. Ra7 {[%clk 0:01:35.4]} 31... Kg7 {[%clk 0:00:40.9]}
32. Rcc7 {[%clk 0:01:34.2]} 32... Rf8 {[%clk 0:00:40.9]} 33. Qe3 {[%clk
0:01:17.8]} 33... Qg6 {[%clk 0:00:37]} 34. c4 {[%clk 0:01:12.4]} 34... Rb1
{[%clk 0:00:35.5]} 35. d5 {[%clk 0:00:54.8]} 35... exd5 {[%clk 0:00:24]} 36.
cxd5 {[%clk 0:00:54.7]} 36... Qh5 {[%clk 0:00:15.3]} 37. Qd4+ {[%clk 0:00:52.3]}
37... Kg8 {[%clk 0:00:14.4]} 38. Ra1 {[%clk 0:00:47.3]} 38... Rb3 {[%clk
0:00:12.5]} 39. Rc3 {[%clk 0:00:43.9]} 39... Rb6 {[%clk 0:00:11.4]} 40. Qxb6
{[%clk 0:00:41.2]} 1-0

[Event "*** SCC Grand Prix: Titled Tuesday Blitz"]
[Site "Chess.com"]
[Date "2020.06.09"]
[Round "7"]
[White "WIDBIFS"]
[Black "sergiochess83"]
[Result "1/2-1/2"]
[WhiteElo "2693"]
[BlackElo "2835"]
[TimeControl "180+1"]
[EndTime "10:18:52 PDT"]
[Termination "Game drawn by repetition"]

1. d4 {[%clk 0:03:00.9]} 1... Nf6 {[%clk 0:02:58.3]} 2. Nf3 {[%clk 0:03:01.4]}
2... d5 {[%clk 0:02:57.8]} 3. Bf4 {[%clk 0:03:01.9]} 3... Bf5 {[%clk 0:02:55.1]}
4. e3 {[%clk 0:03:01.6]} 4... e6 {[%clk 0:02:55.2]} 5. Nbd2 {[%clk 0:02:59.4]}
5... Bd6 {[%clk 0:02:51]} 6. Bg3 {[%clk 0:02:59]} 6... O-O {[%clk 0:02:49.6]} 7.
c4 {[%clk 0:02:59.1]} 7... c6 {[%clk 0:02:45.1]} 8. Qb3 {[%clk 0:02:58.1]} 8...
Bxg3 {[%clk 0:02:37.7]} 9. hxg3 {[%clk 0:02:59]} 9... Qb6 {[%clk 0:02:37.2]} 10.
Rc1 {[%clk 0:02:43.8]} 10... Nbd7 {[%clk 0:02:36.9]} 11. Be2 {[%clk 0:02:42.6]}
11... h6 {[%clk 0:02:36.8]} 12. O-O {[%clk 0:02:42.1]} 12... Ne4 {[%clk
0:02:33.8]} 13. Nxe4 {[%clk 0:02:41.9]} 13... Bxe4 {[%clk 0:02:33.2]} 14. Nd2
{[%clk 0:02:42.3]} 14... Bg6 {[%clk 0:02:32.5]} 15. Qa3 {[%clk 0:02:37.9]} 15...
Rfe8 {[%clk 0:02:30.8]} 16. Bf3 {[%clk 0:02:37.2]} 16... a5 {[%clk 0:02:24.5]}
17. cxd5 {[%clk 0:02:03.7]} 17... exd5 {[%clk 0:02:21.7]} 18. Nb3 {[%clk
0:02:04.2]} 18... Qb4 {[%clk 0:02:15.3]} 19. Nc5 {[%clk 0:01:48.5]} 19... Nxc5
{[%clk 0:01:53.6]} 20. Rxc5 {[%clk 0:01:47.4]} 20... Qxa3 {[%clk 0:01:49.8]} 21.
bxa3 {[%clk 0:01:48.3]} 21... Bd3 {[%clk 0:01:34]} 22. Rfc1 {[%clk 0:01:42.1]}
22... Bc4 {[%clk 0:01:27.1]} 23. Rc2 {[%clk 0:01:36]} 23... Re6 {[%clk
0:01:06.2]} 24. Rb2 {[%clk 0:01:23]} 24... Ra7 {[%clk 0:01:06.2]} 25. a4 {[%clk
0:01:08.1]} 25... g6 {[%clk 0:01:03.1]} 26. Be2 {[%clk 0:00:46.5]} 26... Bxe2
{[%clk 0:00:57.1]} 27. Rxe2 {[%clk 0:00:47.4]} 27... f5 {[%clk 0:00:49.5]} 28.
Rb2 {[%clk 0:00:46.9]} 28... Kg7 {[%clk 0:00:45]} 29. Rb6 {[%clk 0:00:45.9]}
29... Kf6 {[%clk 0:00:44.8]} 30. Kf1 {[%clk 0:00:44.4]} 30... h5 {[%clk
0:00:33.9]} 31. Ke2 {[%clk 0:00:44.1]} 31... Ke7 {[%clk 0:00:31.8]} 32. Kd3
{[%clk 0:00:43.5]} 32... Kd6 {[%clk 0:00:30.8]} 33. Rb1 {[%clk 0:00:34.7]} 33...
Re4 {[%clk 0:00:26.9]} 34. Rbc1 {[%clk 0:00:26.4]} 34... Ra8 {[%clk 0:00:22.1]}
35. Rb1 {[%clk 0:00:25.8]} 35... Re7 {[%clk 0:00:22.1]} 36. Rbc1 {[%clk
0:00:22.3]} 36... Re4 {[%clk 0:00:19.5]} 37. Rb1 {[%clk 0:00:22.3]} 37... Ra7
{[%clk 0:00:19.8]} 38. Rbc1 {[%clk 0:00:22.8]} 38... Rg4 {[%clk 0:00:15.8]} 39.
Rh1 {[%clk 0:00:12.1]} 39... Re4 {[%clk 0:00:13]} 40. Rhc1 {[%clk 0:00:11.3]}
1/2-1/2

[Event "*** SCC Grand Prix: Titled Tuesday Blitz"]
[Site "Chess.com"]
[Date "2020.06.09"]
[Round "7"]
[White "northridgehawk"]
[Black "WiktoriaPOL"]
[Result "1-0"]
[WhiteElo "2349"]
[BlackElo "2048"]
[TimeControl "180+1"]
[EndTime "10:18:52 PDT"]
[Termination "northridgehawk won on time"]

1. e4 {[%clk 0:02:35.4]} 1... c5 {[%clk 0:02:59.5]} 2. Nf3 {[%clk 0:02:35.1]}
2... d6 {[%clk 0:02:59.1]} 3. d4 {[%clk 0:02:36]} 3... cxd4 {[%clk 0:02:59.6]}
4. Nxd4 {[%clk 0:02:36.9]} 4... Nf6 {[%clk 0:02:59.8]} 5. Nc3 {[%clk 0:02:37.4]}
5... a6 {[%clk 0:03:00]} 6. h3 {[%clk 0:02:37.7]} 6... e5 {[%clk 0:02:59]} 7.
Nde2 {[%clk 0:02:37.9]} 7... Be6 {[%clk 0:02:57.7]} 8. g4 {[%clk 0:02:38.2]}
8... Be7 {[%clk 0:02:53.1]} 9. Bg2 {[%clk 0:02:38.4]} 9... b5 {[%clk 0:02:50.9]}
10. O-O {[%clk 0:02:38.4]} 10... Nbd7 {[%clk 0:02:49.9]} 11. Ng3 {[%clk
0:02:38.6]} 11... Nc5 {[%clk 0:02:47.4]} 12. Be3 {[%clk 0:02:37.2]} 12... Rc8
{[%clk 0:02:38.9]} 13. Nd5 {[%clk 0:02:35.8]} 13... Bxd5 {[%clk 0:02:30.6]} 14.
exd5 {[%clk 0:02:36.7]} 14... Qc7 {[%clk 0:02:23.4]} 15. f4 {[%clk 0:02:36.4]}
15... exf4 {[%clk 0:02:21.4]} 16. Rxf4 {[%clk 0:02:33.9]} 16... O-O {[%clk
0:02:13.4]} 17. Nf5 {[%clk 0:02:33.4]} 17... Ne8 {[%clk 0:01:54.9]} 18. Bd4
{[%clk 0:02:12.1]} 18... Bf6 {[%clk 0:01:50]} 19. c3 {[%clk 0:02:06.4]} 19...
Na4 {[%clk 0:01:23.1]} 20. Qd2 {[%clk 0:01:57.7]} 20... Bxd4+ {[%clk 0:01:20.1]}
21. Nxd4 {[%clk 0:01:56.8]} 21... Nb6 {[%clk 0:01:14.2]} 22. Nc6 {[%clk
0:01:53.3]} 22... Nf6 {[%clk 0:01:10]} 23. Rd1 {[%clk 0:01:45]} 23... Nfxd5
{[%clk 0:00:44.2]} 24. Bxd5 {[%clk 0:01:01.7]} 24... Nxd5 {[%clk 0:00:45.1]} 25.
Qxd5 {[%clk 0:01:01.8]} 25... Qxc6 {[%clk 0:00:44.6]} 26. Qxd6 {[%clk
0:01:02.3]} 26... Qxd6 {[%clk 0:00:21.7]} 27. Rxd6 {[%clk 0:01:03.2]} 27... Ra8
{[%clk 0:00:17.9]} 28. Rd7 {[%clk 0:01:02.8]} 28... f6 {[%clk 0:00:16.6]} 29.
Re4 {[%clk 0:00:59.2]} 29... Rf7 {[%clk 0:00:15.8]} 30. Ree7 {[%clk 0:00:58.9]}
30... Rxe7 {[%clk 0:00:14.3]} 31. Rxe7 {[%clk 0:00:59.8]} 31... Kf8 {[%clk
0:00:14.3]} 32. Rb7 {[%clk 0:00:59.8]} 32... h6 {[%clk 0:00:06.2]} 33. Kf2
{[%clk 0:00:59.3]} 33... Rd8 {[%clk 0:00:05.1]} 34. Ke3 {[%clk 0:00:58.6]} 34...
Rd6 {[%clk 0:00:04.9]} 35. Kf4 {[%clk 0:00:53.6]} 35... Rd2 {[%clk 0:00:02.8]}
36. a4 {[%clk 0:00:48.5]} 36... bxa4 {[%clk 0:00:02.3]} 37. Kf5 {[%clk
0:00:43.3]} 37... Rd5+ {[%clk 0:00:01.5]} 38. Ke6 {[%clk 0:00:40.5]} 38... Re5+
{[%clk 0:00:01.6]} 39. Kd6 {[%clk 0:00:40.3]} 39... Ra5 {[%clk 0:00:01.7]} 40.
h4 {[%clk 0:00:37.1]} 40... a3 {[%clk 0:00:01.9]} 41. bxa3 {[%clk 0:00:37.5]}
41... Rxa3 {[%clk 0:00:02.8]} 42. c4 {[%clk 0:00:37.6]} 42... Rc3 {[%clk
0:00:03]} 43. c5 {[%clk 0:00:37.6]} 43... a5 {[%clk 0:00:03]} 44. c6 {[%clk
0:00:37.8]} 44... a4 {[%clk 0:00:03.4]} 45. c7 {[%clk 0:00:37.2]} 45... a3
{[%clk 0:00:03.7]} 46. Rb8+ {[%clk 0:00:37.4]} 46... Kf7 {[%clk 0:00:03.5]} 47.
c8=Q {[%clk 0:00:38.3]} 47... Rxc8 {[%clk 0:00:03.3]} 48. Rxc8 {[%clk
0:00:39.2]} 48... a2 {[%clk 0:00:03.4]} 49. Ra8 {[%clk 0:00:39.3]} 1-0

[Event "*** SCC Grand Prix: Titled Tuesday Blitz"]
[Site "Chess.com"]
[Date "2020.06.09"]
[Round "7"]
[White "ferdipy"]
[Black "picturesquecheck"]
[Result "1-0"]
[WhiteElo "2357"]
[BlackElo "2118"]
[TimeControl "180+1"]
[EndTime "10:18:53 PDT"]
[Termination "ferdipy won by resignation"]

1. e4 {[%clk 0:03:00.9]} 1... c5 {[%clk 0:02:58.8]} 2. d4 {[%clk 0:03:00.8]}
2... cxd4 {[%clk 0:02:57.6]} 3. c3 {[%clk 0:03:01.5]} 3... d5 {[%clk 0:02:57.3]}
4. exd5 {[%clk 0:03:01.6]} 4... Qxd5 {[%clk 0:02:58.2]} 5. cxd4 {[%clk
0:03:02.5]} 5... Nc6 {[%clk 0:02:53.2]} 6. Nc3 {[%clk 0:03:03.4]} 6... Qxd4
{[%clk 0:02:52.2]} 7. Bd2 {[%clk 0:03:02.2]} 7... e5 {[%clk 0:02:47.4]} 8. Nf3
{[%clk 0:03:01]} 8... Qd8 {[%clk 0:02:47.2]} 9. Bb5 {[%clk 0:03:00.3]} 9... Bd6
{[%clk 0:02:46.3]} 10. O-O {[%clk 0:02:58.9]} 10... Ne7 {[%clk 0:02:45.6]} 11.
Re1 {[%clk 0:02:52.2]} 11... O-O {[%clk 0:02:43.5]} 12. Bc4 {[%clk 0:02:40.6]}
12... Bg4 {[%clk 0:02:35.4]} 13. h3 {[%clk 0:02:38.2]} 13... Bh5 {[%clk
0:02:34.9]} 14. Ne4 {[%clk 0:02:33.4]} 14... Bc7 {[%clk 0:02:24.1]} 15. g4
{[%clk 0:02:30.2]} 15... Bg6 {[%clk 0:02:23.5]} 16. Ng3 {[%clk 0:02:29.5]} 16...
Kh8 {[%clk 0:02:17.7]} 17. Qe2 {[%clk 0:02:26.7]} 17... Rc8 {[%clk 0:01:57.2]}
18. Rad1 {[%clk 0:02:26.5]} 18... Bb6 {[%clk 0:01:35]} 19. Bc3 {[%clk
0:02:14.6]} 19... Qc7 {[%clk 0:01:26.9]} 20. Nxe5 {[%clk 0:02:06.1]} 20... Nxe5
{[%clk 0:01:25.2]} 21. Qxe5 {[%clk 0:02:05]} 21... Qxe5 {[%clk 0:01:21.3]} 22.
Rxe5 {[%clk 0:02:05.9]} 22... Rxc4 {[%clk 0:01:12]} 23. Rxe7 {[%clk 0:02:05.6]}
23... Rf4 {[%clk 0:01:11.6]} 24. Rd2 {[%clk 0:01:52]} 24... h6 {[%clk 0:00:28]}
25. Rxb7 {[%clk 0:01:50.7]} 25... Re8 {[%clk 0:00:27.5]} 26. Kg2 {[%clk
0:01:44]} 26... Kh7 {[%clk 0:00:18.4]} 27. f3 {[%clk 0:01:41.9]} 27... Ra4
{[%clk 0:00:15.7]} 28. a3 {[%clk 0:01:38.4]} 28... Re3 {[%clk 0:00:13.4]} 29. h4
{[%clk 0:01:31.8]} 29... Bb1 {[%clk 0:00:10.8]} 30. Rd1 {[%clk 0:01:13]} 30...
Bc2 {[%clk 0:00:08.5]} 31. Rd2 {[%clk 0:01:12.7]} 31... Bb3 {[%clk 0:00:08.1]}
32. Nf5 {[%clk 0:01:07.8]} 32... Re1 {[%clk 0:00:04.3]} 33. Bxg7 {[%clk
0:01:01.7]} 33... Be6 {[%clk 0:00:05.2]} 34. Bc3 {[%clk 0:00:55.7]} 34... Rg1+
{[%clk 0:00:06.1]} 35. Kh2 {[%clk 0:00:54]} 35... Bxf5 {[%clk 0:00:07]} 36.
Rxf7+ {[%clk 0:00:52.1]} 36... Kg8 {[%clk 0:00:07.1]} 37. Rxf5 {[%clk
0:00:44.9]} 37... Rc4 {[%clk 0:00:06.3]} 38. Rg2 {[%clk 0:00:41.6]} 38... Rxg2+
{[%clk 0:00:05.8]} 39. Kxg2 {[%clk 0:00:42.5]} 39... Rc8 {[%clk 0:00:06.2]} 40.
Rf6 {[%clk 0:00:41.6]} 40... Re8 {[%clk 0:00:07.1]} 41. Rxh6 {[%clk 0:00:40.8]}
41... Re2+ {[%clk 0:00:08]} 42. Kg3 {[%clk 0:00:39.1]} 42... Bf2+ {[%clk
0:00:06.5]} 43. Kh3 {[%clk 0:00:33.8]} 43... Be3 {[%clk 0:00:07.4]} 44. Re6
{[%clk 0:00:32.4]} 44... Kf8 {[%clk 0:00:08.3]} 45. Bb4+ {[%clk 0:00:31.8]} 1-0

[Event "*** SCC Grand Prix: Titled Tuesday Blitz"]
[Site "Chess.com"]
[Date "2020.06.09"]
[Round "7"]
[White "mortngabriel"]
[Black "bratkoo"]
[Result "1-0"]
[WhiteElo "2466"]
[BlackElo "2322"]
[TimeControl "180+1"]
[EndTime "10:18:54 PDT"]
[Termination "mortngabriel won by checkmate"]

1. e4 {[%clk 0:03:00.9]} 1... e6 {[%clk 0:02:59.5]} 2. Nf3 {[%clk 0:03:00.2]}
2... d5 {[%clk 0:02:59.7]} 3. e5 {[%clk 0:02:59.9]} 3... c5 {[%clk 0:03:00]} 4.
b4 {[%clk 0:02:58.6]} 4... Nc6 {[%clk 0:03:00.7]} 5. bxc5 {[%clk 0:02:58.5]}
5... Bxc5 {[%clk 0:03:01.6]} 6. d4 {[%clk 0:02:57.9]} 6... Bb6 {[%clk
0:03:02.2]} 7. c3 {[%clk 0:02:58.8]} 7... f6 {[%clk 0:03:01.8]} 8. Bd3 {[%clk
0:02:59.7]} 8... fxe5 {[%clk 0:03:01.7]} 9. Nxe5 {[%clk 0:02:51.9]} 9... Nf6
{[%clk 0:03:01.1]} 10. O-O {[%clk 0:02:50.9]} 10... O-O {[%clk 0:03:00.4]} 11.
Re1 {[%clk 0:02:49]} 11... Nxe5 {[%clk 0:02:58.9]} 12. Rxe5 {[%clk 0:02:48.7]}
12... Bd7 {[%clk 0:02:59.1]} 13. Bg5 {[%clk 0:02:31.6]} 13... Qc7 {[%clk
0:02:51.8]} 14. h3 {[%clk 0:02:05.5]} 14... Rae8 {[%clk 0:02:50.5]} 15. Bh4
{[%clk 0:01:55.9]} 15... Qb8 {[%clk 0:02:45.2]} 16. Nd2 {[%clk 0:01:50.6]} 16...
Bc7 {[%clk 0:02:39.5]} 17. Nf3 {[%clk 0:01:48.5]} 17... Bxe5 {[%clk 0:02:38.9]}
18. Nxe5 {[%clk 0:01:49.4]} 18... Bc8 {[%clk 0:02:38.1]} 19. Qc2 {[%clk
0:01:43.9]} 19... Qc7 {[%clk 0:02:36.5]} 20. Re1 {[%clk 0:01:37]} 20... b6
{[%clk 0:02:26]} 21. Re3 {[%clk 0:01:35.6]} 21... Bb7 {[%clk 0:02:25.8]} 22. Rg3
{[%clk 0:01:34.9]} 22... Ne4 {[%clk 0:02:25.3]} 23. f3 {[%clk 0:01:25.7]} 23...
Rf4 {[%clk 0:02:07.1]} 24. fxe4 {[%clk 0:01:02.9]} 24... dxe4 {[%clk 0:02:03.8]}
25. Bb5 {[%clk 0:01:00.2]} 25... Ref8 {[%clk 0:02:01.1]} 26. Bg5 {[%clk
0:00:52.8]} 26... R4f5 {[%clk 0:01:49.2]} 27. Be3 {[%clk 0:00:48.9]} 27... Rxe5
{[%clk 0:01:49.1]} 28. dxe5 {[%clk 0:00:46.6]} 28... Qxe5 {[%clk 0:01:49.3]} 29.
Rg5 {[%clk 0:00:44.9]} 29... Rf5 {[%clk 0:01:43.9]} 30. Rxf5 {[%clk 0:00:39.1]}
30... exf5 {[%clk 0:01:43.2]} 31. Bc4+ {[%clk 0:00:38.9]} 31... Bd5 {[%clk
0:01:41.7]} 32. Qb3 {[%clk 0:00:36.6]} 32... Bxc4 {[%clk 0:01:41.5]} 33. Qxc4+
{[%clk 0:00:37.5]} 33... Kf8 {[%clk 0:01:40.7]} 34. Bd4 {[%clk 0:00:34.8]} 34...
Qa5 {[%clk 0:01:37.3]} 35. Qc8+ {[%clk 0:00:33.8]} 35... Kf7 {[%clk 0:01:37.8]}
36. Qd7+ {[%clk 0:00:31.9]} 36... Kf8 {[%clk 0:01:38.1]} 37. Bxg7+ {[%clk
0:00:30.6]} 37... Kg8 {[%clk 0:01:38.6]} 38. Bf6 {[%clk 0:00:26.5]} 38... Qc5+
{[%clk 0:01:33.2]} 39. Bd4 {[%clk 0:00:26.6]} 39... Qf8 {[%clk 0:01:29.5]} 40.
Kf2 {[%clk 0:00:20.8]} 40... f4 {[%clk 0:01:28.8]} 41. Qe6+ {[%clk 0:00:20.4]}
41... Qf7 {[%clk 0:01:29]} 42. Qxe4 {[%clk 0:00:20.9]} 42... Qxa2+ {[%clk
0:01:28.1]} 43. Kf3 {[%clk 0:00:20.6]} 43... Qf7 {[%clk 0:01:27.9]} 44. Qxf4
{[%clk 0:00:20.2]} 44... Qd5+ {[%clk 0:01:27.3]} 45. Kg3 {[%clk 0:00:17.4]}
45... h5 {[%clk 0:01:25.7]} 46. Qf6 {[%clk 0:00:15.3]} 46... Qf7 {[%clk
0:01:20.6]} 47. Qxf7+ {[%clk 0:00:11.1]} 47... Kxf7 {[%clk 0:01:18.3]} 48. c4
{[%clk 0:00:09.9]} 48... Ke6 {[%clk 0:01:17]} 49. Kf4 {[%clk 0:00:10]} 49... Kd6
{[%clk 0:01:14.5]} 50. Kg5 {[%clk 0:00:09.7]} 50... Kc6 {[%clk 0:01:13.8]} 51.
Kxh5 {[%clk 0:00:09.6]} 51... a5 {[%clk 0:01:14.7]} 52. g4 {[%clk 0:00:09]}
52... a4 {[%clk 0:01:15.6]} 53. g5 {[%clk 0:00:09.2]} 53... a3 {[%clk
0:01:16.5]} 54. g6 {[%clk 0:00:09.4]} 54... b5 {[%clk 0:01:17.4]} 55. cxb5+
{[%clk 0:00:09.1]} 55... Kd5 {[%clk 0:01:17.9]} 56. Ba1 {[%clk 0:00:08.2]} 56...
Kc5 {[%clk 0:01:17.1]} 57. g7 {[%clk 0:00:07.9]} 57... Kxb5 {[%clk 0:01:18]} 58.
g8=Q {[%clk 0:00:08.2]} 58... a2 {[%clk 0:01:18.9]} 59. Qxa2 {[%clk 0:00:07.9]}
59... Kc5 {[%clk 0:01:18.5]} 60. Qe6 {[%clk 0:00:06.7]} 60... Kb4 {[%clk
0:01:18]} 61. Bg7 {[%clk 0:00:07.1]} 61... Kc5 {[%clk 0:01:17.3]} 62. Kg6 {[%clk
0:00:08]} 62... Kb4 {[%clk 0:01:17.3]} 63. h4 {[%clk 0:00:08.9]} 63... Ka3
{[%clk 0:01:17.9]} 64. h5 {[%clk 0:00:09.8]} 64... Ka4 {[%clk 0:01:17.8]} 65. h6
{[%clk 0:00:10.7]} 65... Ka3 {[%clk 0:01:18.6]} 66. h7 {[%clk 0:00:11.6]} 66...
Ka4 {[%clk 0:01:18.7]} 67. h8=Q {[%clk 0:00:12.5]} 67... Ka3 {[%clk 0:01:19.6]}
68. Qd8 {[%clk 0:00:12.9]} 68... Kb4 {[%clk 0:01:20.5]} 69. Qed7 {[%clk
0:00:12.9]} 69... Kc5 {[%clk 0:01:21.4]} 70. Q7c7+ {[%clk 0:00:13.1]} 70... Kb5
{[%clk 0:01:21.5]} 71. Qdb8+ {[%clk 0:00:14]} 71... Ka4 {[%clk 0:01:21.5]} 72.
Qca7# {[%clk 0:00:14.9]} 1-0